bitfinex-derivatives/quotes_ETHF0:USTF0_20230702
["timestamp","ask_amount","ask_price","bid_price","bid_amount"]
[1688325161647,3.303,1912.0,1911.8,0.56748412]
[1688325161847,3.303,1912.2,1911.9,6.90456101]
[1688325162146,3.303,1912.2,1912.1,3.2078]
[1688325162348,3.303,1912.2,1912.1,3.60153101]
[1688325162651,3.303,1912.2,1912.1,3.61680697]
[1688325162849,4.24442,1912.3,1912.1,3.61680697]
[1688325163838,4.24442,1912.3,1912.2,0.88125412]
[1688325164546,4.53113635,1912.3,1912.2,0.88125412]
[1688325164845,4.53113635,1912.3,1912.2,0.32904181]
[1688325168647,9.71632034,1912.3,1912.2,0.01527181]
[1688325169049,9.57324164,1912.3,1912.2,0.01527181]
[1688325169348,20.27906661,1912.3,1912.2,0.01527181]
[1688325169748,20.27906661,1912.3,1912.2,0.07639877]
[1688325169948,20.27906661,1912.3,1911.9,0.94138]
[1688325170255,2.40178941,1912.2,1912.0,0.3138]
[1688325170451,3.89250635,1912.1,1912.0,0.3138]
[1688325170752,7.10030635,1912.1,1911.9,0.94138]
[1688325170946,3.60581,1912.0,1911.9,0.94138]
[1688325171743,3.60581,1912.0,1911.9,0.95667371]
[1688325172349,4.17329412,1912.0,1911.9,0.95667371]
[1688325174652,4.17329412,1912.0,1911.9,1.03661472]
[1688325175051,3.60581,1912.0,1911.9,1.03661472]
[1688325176452,3.60581,1912.0,1911.9,4.24441472]
[1688325186073,3.60581,1912.0,1911.9,1.03661472]
[1688325190471,3.60581,1912.0,1911.9,6.27821472]
[1688325191273,3.292,1912.0,1911.9,9.48601472]
[1688325192772,3.71764103,1912.1,1911.9,9.48601472]
[1688325193177,3.303,1912.1,1911.9,9.48601472]
[1688325193681,3.61679,1912.1,1912.0,0.56748412]
[1688325193871,3.61679,1912.1,1912.0,0.88129412]
[1688325194672,3.61679,1912.1,1912.0,0.89658088]
[1688325213500,3.71498134,1912.1,1912.0,0.89658088]
[1688325213704,4.00169769,1912.1,1912.0,0.89658088]
[1688325214091,3.90350635,1912.1,1912.0,0.89658088]
[1688325218800,3.90350635,1912.1,1912.0,0.32909676]
[1688325219403,3.61679,1912.1,1912.0,0.32909676]
[1688325219905,3.90350635,1912.1,1912.0,0.32909676]
[1688325224309,0.60050635,1912.1,1912.0,0.32909676]
[1688325226311,0.31376,1912.3,1912.0,6.91983777]
[1688325226509,0.31376,1912.3,1912.2,0.31377]
[1688325226912,0.31376,1912.3,1912.2,3.52157]
[1688325227115,0.31376,1912.3,1912.2,3.60151101]
[1688325227307,0.31376,1912.3,1912.2,8.87541101]
[1688325227807,0.31376,1912.3,1912.2,8.89068089]
[1688325229605,0.73434452,1912.3,1912.2,8.89068089]
[1688325229810,0.31376,1912.3,1912.2,8.89068089]
[1688325230313,14.45026,1912.4,1912.2,8.89068089]
[1688325230314,9.17566,1912.4,1912.2,8.89068089]
[1688325230910,9.17566,1912.4,1912.2,9.45816501]
[1688325231612,4.06246,1912.4,1912.2,9.45816501]
[1688325231820,5.91870743,1912.4,1912.2,9.45816501]
[1688325232408,2.16998743,1912.4,1912.2,12.76116501]
[1688325232615,0.31374,1912.4,1912.2,12.76116501]
[1688325233212,0.73816568,1912.4,1912.2,12.76116501]
[1688325233408,2.16998743,1912.4,1912.2,12.76116501]
[1688325235009,2.16998743,1912.4,1912.2,9.55336501]
[1688325236015,2.45670378,1912.4,1912.2,4.27946501]
[1688325236210,6.3161879,1912.4,1912.2,0.97646501]
[1688325239417,6.3161879,1912.4,1912.2,0.97646501]
[1688325240017,6.02947155,1912.4,1912.2,0.97646501]
[1688325246222,6.3161879,1912.4,1912.2,0.40898089]
[1688325247129,5.14824743,1912.4,1912.2,0.40898089]
[1688325247427,5.46198743,1912.4,1912.2,0.40898089]
[1688325248024,5.46198743,1912.4,1912.2,3.71198089]
[1688325248025,1.85624743,1912.4,1912.2,3.71198089]
[1688325248232,1.85624743,1912.4,1912.3,0.56748412]
[1688325248431,2.28034001,1912.5,1912.3,0.88124412]
[1688325248618,2.28034001,1912.5,1912.3,10.96064412]
[1688325248926,1.85624743,1912.5,1912.4,0.09519279]
[1688325249229,1.85624743,1912.5,1912.4,0.40893279]
[1688325249826,2.45668378,1912.5,1912.4,0.40893279]
[1688325250729,2.16996743,1912.5,1912.4,0.40893279]
[1688325251736,1.85624743,1912.5,1912.4,0.40893279]
[1688325252335,2.00017279,1912.5,1912.4,0.40893279]
[1688325261646,0.14392536,1912.5,1912.4,3.61673279]
[1688325262347,0.50535157,1912.5,1912.4,3.61673279]
[1688325262734,0.50535157,1912.5,1912.4,6.91973279]
[1688325262937,0.19162157,1912.5,1912.4,6.91973279]
[1688325263149,0.50535157,1912.5,1912.4,6.91973279]
[1688325266045,0.19162157,1912.5,1912.4,6.91973279]
[1688325266245,0.50535157,1912.5,1912.4,6.91973279]
[1688325275251,0.19162157,1912.5,1912.4,3.71193279]
[1688325275456,0.19162157,1912.5,1912.4,6.91973279]
[1688325307667,0.47833792,1912.5,1912.4,6.91973279]
[1688325307865,0.47833792,1912.5,1912.4,6.83979178]
[1688325308066,0.79206792,1912.5,1912.4,3.63199178]
[1688325308967,0.47833792,1912.5,1912.4,3.63199178]
[1688325309164,0.47833792,1912.5,1912.4,3.71193279]
[1688325309860,0.19162157,1912.5,1912.4,3.71193279]
[1688325311569,4.09506792,1912.5,1912.4,0.32899178]
[1688325311763,2.55043158,1912.5,1912.4,0.32900178]
[1688325311962,2.23670158,1912.5,1912.4,0.40894279]
[1688325312271,1.94998523,1912.5,1912.4,3.71194279]
[1688325313371,2.55043158,1912.5,1912.4,3.71194279]
[1688325313559,2.55043158,1912.5,1912.4,3.63200178]
[1688325313963,2.55043158,1912.5,1912.4,0.32900178]
[1688325322675,5.82843158,1912.5,1912.4,0.32900178]
[1688325324375,5.82843158,1912.5,1912.4,0.01525178]
[1688325324582,5.85343158,1912.5,1912.4,0.01525178]
[1688325324778,5.85343158,1912.5,1912.2,0.78438]
[1688325325074,6.4858,1912.3,1912.2,0.78438]
[1688325325280,7.19127635,1912.3,1912.2,0.78438]
[1688325325477,7.26843487,1912.3,1912.2,0.78438]
[1688325325988,0.105,1912.2,1912.0,0.31376]
[1688325326177,0.105,1912.0,1911.8,0.94144]
[1688325326369,3.2078,1911.9,1911.8,0.94144]
[1688325326574,4.37583047,1911.9,1911.8,0.94144]
[1688325326773,4.37583047,1911.9,1911.8,0.95561215]
[1688325332785,7.65383047,1911.9,1911.8,0.95561215]
[1688325332987,4.44603047,1911.9,1911.8,1.03555316]
[1688325333187,4.44603047,1911.9,1911.8,0.95561215]
[1688325335793,7.65383047,1911.9,1911.8,0.01417215]
[1688325338487,7.65383047,1911.9,1911.8,0.16083766]
[1688325340392,7.65383047,1911.9,1911.8,0.01417215]
[1688325341289,7.65383047,1911.9,1911.8,0.16486657]
[1688325345089,7.65383047,1911.9,1911.8,0.47871657]
[1688325347288,7.65383047,1911.9,1911.8,0.16486657]
[1688325351501,10.95683047,1911.9,1911.8,0.16486657]
[1688325352300,10.95683047,1911.9,1911.7,5.0354]
[1688325352502,3.59185,1911.8,1911.7,5.0354]
[1688325352798,3.59185,1911.8,1911.7,5.0525613]
[1688325353903,3.59185,1911.8,1911.7,0.0171613]
[1688325359810,3.59185,1911.8,1911.7,0.09425521]
[1688325363118,4.01212495,1911.8,1911.7,0.09425521]
[1688325370922,5.80808386,1911.8,1911.7,0.09425521]
[1688325372923,4.01212495,1911.8,1911.7,0.09425521]
[1688325373225,5.81021416,1911.8,1911.7,0.09425521]
[1688325376522,5.81021416,1911.8,1911.7,0.13867342]
[1688325383427,5.81021416,1911.8,1911.7,5.16337342]
[1688325384029,5.81021416,1911.8,1911.7,5.24331443]
[1688325384925,5.81021416,1911.8,1911.7,5.16337342]
[1688325385535,5.81021416,1911.8,1911.7,5.24331443]
[1688325385833,5.81021416,1911.8,1911.7,5.16337342]
[1688325389829,5.81021416,1911.8,1911.7,5.55717443]
[1688325390434,1.79808921,1911.8,1911.7,5.55717443]
[1688325390733,0.31385,1911.8,1911.7,5.55717443]
[1688325390933,0.31385,1911.8,1911.7,5.51478195]
[1688325391131,4.47089508,1911.9,1911.8,0.88133412]
[1688325391334,3.47119508,1911.9,1911.8,0.88133412]
[1688325391527,4.25581508,1911.9,1911.8,0.88133412]
[1688325391726,1.77921508,1911.9,1911.8,0.88133412]
[1688325392037,0.31382,1912.0,1911.8,0.89782141]
[1688325392336,2.9366,1911.9,1911.8,0.89782141]
[1688325392639,3.60583,1911.9,1911.8,0.89782141]
[1688325392835,3.60583,1911.9,1911.8,0.97776242]
[1688325401944,3.60583,1911.9,1911.8,1.39974369]
[1688325405544,3.60583,1911.9,1911.8,0.97776242]
[1688325407552,4.02266311,1911.9,1911.8,0.97776242]
[1688325410449,0.73066311,1911.9,1911.8,0.97776242]
[1688325416156,1.01737946,1911.9,1911.8,0.89782141]
[1688325416653,1.01737946,1911.9,1911.8,0.97776242]
[1688325417855,0.73066311,1911.9,1911.8,0.97776242]
[1688325420161,1.01737946,1911.9,1911.8,0.97776242]
[1688325420361,1.01737946,1911.9,1911.8,0.89782141]
[1688325420553,1.01737946,1911.9,1911.8,0.33033729]
[1688325422064,0.73066311,1911.9,1911.8,0.4102783]
[1688325426761,1.01737946,1911.9,1911.8,0.33033729]
[1688325427762,7.52817946,1911.9,1911.8,0.01648729]
[1688325428173,8.46994946,1911.9,1911.8,0.01648729]
[1688325428366,8.46994946,1911.9,1911.8,0.09390487]
[1688325428367,7.52817946,1911.9,1911.8,0.09390487]
[1688325429569,8.46994772,1911.9,1911.8,0.09390487]
[1688325430965,8.46994772,1911.9,1911.8,0.13807312]
[1688325432374,8.46994772,1911.9,1911.8,0.01648729]
[1688325433073,8.46994772,1911.9,1911.8,0.13811535]
[1688325434573,8.46994772,1911.9,1911.8,0.45196535]
[1688325439675,5.26214772,1911.9,1911.8,0.45196535]
[1688325439881,8.46994772,1911.9,1911.8,0.45196535]
[1688325441681,8.46994772,1911.9,1911.8,0.13811535]
[1688325441879,8.46994772,1911.9,1911.8,0.13946976]
[1688325442175,8.46994772,1911.9,1911.8,0.01648586]
[1688325442378,14.61920853,1911.9,1911.8,0.01648586]
[1688325442675,14.61920853,1911.9,1911.6,0.00784601]
[1688325442676,0.56748412,1911.8,1911.4,0.31386]
[1688325442878,6.4998,1911.5,1911.4,0.31386]
[1688325443173,6.4998,1911.5,1911.1,4.14958]
[1688325443174,8.60983201,1911.5,1911.1,0.94178]
[1688325443379,0.31394,1911.2,1911.1,0.94178]
[1688325443679,0.60065635,1911.2,1911.1,1.43716527]
[1688325443875,0.60065635,1911.2,1911.1,1.37250664]
[1688325447067,0.60065635,1911.2,1911.1,1.45244765]
[1688325447268,0.31394,1911.2,1911.1,1.45244765]
[1688325448475,0.60065635,1911.2,1911.1,1.45244765]
[1688325448873,0.60065635,1911.2,1911.1,1.37250664]
[1688325449481,0.60065635,1911.2,1911.1,1.64161606]
[1688325450676,0.60065635,1911.2,1911.1,1.72155707]
[1688325451790,0.60065635,1911.2,1911.1,1.64161606]
[1688325452477,5.71025635,1911.2,1911.1,1.64161606]
[1688325457690,5.1096,1911.2,1911.1,1.72155707]
[1688325457880,4.08471868,1911.3,1911.1,1.72155707]
[1688325458588,0.32177868,1911.3,1911.2,0.56748412]
[1688325458787,0.32177868,1911.3,1911.2,0.88142412]
[1688325458991,0.32177868,1911.3,1911.2,1.15071715]
[1688325459802,0.32177868,1911.3,1911.2,1.16598404]
[1688325461602,0.60849503,1911.3,1911.2,1.16598404]
[1688325471106,0.32177868,1911.3,1911.2,1.16598404]
[1688325474003,0.00784868,1911.3,1911.2,4.46398404]
[1688325474402,0.00784868,1911.3,1911.2,9.52918404]
[1688325477303,0.60849503,1911.3,1911.2,5.66369992]
[1688325477805,5.58289503,1911.3,1911.2,0.28455992]
[1688325478005,5.58289503,1911.3,1911.2,0.59849992]
[1688325486314,8.79069503,1911.3,1911.2,0.59849992]
[1688325487334,12.09369503,1911.3,1911.2,0.59849992]
[1688325503231,8.88589503,1911.3,1911.2,0.59849992]
[1688325506227,8.88589503,1911.3,1911.2,0.67844093]
[1688325507829,8.88589503,1911.3,1911.2,0.59849992]
[1688325508431,8.59917868,1911.3,1911.2,0.67844093]
[1688325508632,8.58817868,1911.3,1911.2,0.67844093]
[1688325514352,3.61377868,1911.3,1911.2,0.67844093]
[1688325518257,3.29984868,1911.3,1911.2,0.67844093]
[1688325518461,3.61377868,1911.3,1911.2,0.67844093]
[1688325521967,0.00784868,1911.3,1911.2,3.98144093]
[1688325522773,0.32177868,1911.3,1911.2,0.67844093]
[1688325523456,0.00784868,1911.3,1911.2,0.67844093]
[1688325523657,0.32177868,1911.3,1911.2,0.67844093]
[1688325524056,0.00784868,1911.3,1911.2,0.67844093]
[1688325524365,0.32177868,1911.3,1911.2,0.67844093]
[1688325527064,0.60849503,1911.3,1911.2,0.67844093]
[1688325530365,0.32177868,1911.3,1911.2,0.67844093]
[1688325533876,5.35057868,1911.3,1911.2,0.67844093]
[1688325538385,5.63729503,1911.3,1911.2,0.59849992]
[1688325539885,5.63729503,1911.3,1911.2,0.67844093]
[1688325540785,5.35057868,1911.3,1911.2,0.67844093]
[1688325544992,5.03664868,1911.3,1911.2,0.67844093]
[1688325545487,0.00784868,1911.3,1911.2,0.67844093]
[1688325545686,0.00784868,1911.3,1911.2,3.98144093]
[1688325551593,0.32177868,1911.3,1911.2,3.98144093]
[1688325558195,0.00784868,1911.3,1911.2,3.98144093]
[1688325570498,0.32177868,1911.3,1911.2,3.98144093]
[1688325570702,0.60849503,1911.3,1911.2,3.90149992]
[1688325573613,0.00784868,1911.3,1911.2,3.97644093]
[1688325574610,0.32177868,1911.3,1911.2,3.97644093]
[1688325578619,0.60849503,1911.3,1911.2,3.89649992]
[1688325581824,0.32177868,1911.3,1911.2,3.97644093]
[1688325583626,0.60849503,1911.3,1911.2,3.97644093]
[1688325584225,0.60849503,1911.3,1911.2,3.89649992]
[1688325584926,0.60849503,1911.3,1911.2,3.97644093]
[1688325587429,0.32177868,1911.3,1911.2,3.97644093]
[1688325588619,0.60849503,1911.3,1911.2,3.97644093]
[1688325589018,0.60849503,1911.3,1911.2,3.89649992]
[1688325589629,0.60849503,1911.3,1911.2,3.97644093]
[1688325590021,0.32177868,1911.3,1911.2,3.97644093]
[1688325594432,0.00784868,1911.3,1911.2,3.97644093]
[1688325606241,0.00784868,1911.3,1911.2,4.29221386]
[1688325629458,0.29456503,1911.3,1911.2,4.29221386]
[1688325632058,0.00784868,1911.3,1911.2,4.29221386]
[1688325635363,0.60849503,1911.3,1911.2,4.29221386]
[1688325638466,0.32177868,1911.3,1911.2,4.29221386]
[1688325639868,0.32177868,1911.3,1911.2,4.27694697]
[1688325640867,0.32177868,1911.3,1911.2,4.29188025]
[1688325641965,0.32177868,1911.3,1911.2,3.89842822]
[1688325650072,0.32177868,1911.3,1911.2,7.10622822]
[1688325664168,0.00784868,1911.3,1911.2,7.10622822]
[1688325667977,0.00784868,1911.3,1911.2,3.89842822]
[1688325668274,0.00784868,1911.3,1911.2,7.10622822]
[1688325674473,0.00784868,1911.3,1911.2,8.65486837]
[1688325682689,21.08782081,1912.0,1911.5,0.31389]
[1688325682885,7.14960093,1912.1,1911.8,7.29537]
[1688325682886,4.879,1911.9,1911.8,7.29537]
[1688325683075,0.14135242,1911.9,1911.8,10.59337]
[1688325683280,0.14135242,1911.9,1911.8,11.16085412]
[1688325683576,0.14135242,1911.9,1911.8,11.23294644]
[1688325684082,0.14135242,1911.9,1911.8,11.24782848]
[1688325693693,0.14135242,1911.9,1911.8,11.67322875]
[1688325717201,0.14135242,1911.9,1911.8,16.67322875]
[1688325717411,5.1855458,1912.0,1911.8,22.5844544]
[1688325717599,4.8002,1912.1,1911.9,3.298]
[1688325717801,4.8002,1912.1,1912.0,7.46418644]
[1688325718001,4.8002,1912.1,1912.0,13.16807713]
[1688325719206,4.88589388,1912.1,1912.0,13.16807713]
[1688325724005,5.17261023,1912.1,1912.0,6.83947661]
[1688325725011,5.17261023,1912.1,1912.0,6.91156893]
[1688325726618,4.88589388,1912.1,1912.0,6.91156893]
[1688325730619,4.88589388,1912.1,1912.0,7.33406529]
[1688325731212,0.08569388,1912.1,1912.0,12.9158854]
[1688325731611,4.99053901,1912.2,1912.0,12.9158854]
[1688325731811,4.99053901,1912.2,1912.1,3.303]
[1688325732117,4.99053901,1912.2,1912.1,4.18427412]
[1688325733012,4.99053901,1912.2,1912.1,4.19913136]
[1688325733824,5.07728396,1912.2,1912.1,4.19913136]
[1688325736219,0.09458396,1912.2,1912.1,4.19913136]
[1688325737816,0.18368552,1912.2,1912.1,4.19913136]
[1688325739821,0.47040187,1912.2,1912.1,4.19913136]
[1688325740024,0.78418187,1912.2,1912.1,4.19913136]
[1688325740526,0.78418187,1912.2,1912.1,3.63164724]
[1688325742727,0.78418187,1912.2,1912.1,3.70373956]
[1688325746030,0.47040187,1912.2,1912.1,3.70373956]
[1688325748125,0.18368552,1912.2,1912.1,3.70373956]
[1688325754227,0.49746552,1912.2,1912.1,3.70373956]
[1688325758627,0.18368552,1912.2,1912.1,3.70373956]
[1688325764840,0.18368552,1912.2,1912.1,6.91153956]
[1688325770240,0.47040187,1912.2,1912.1,6.83944724]
[1688325770850,0.47040187,1912.2,1912.1,6.91153956]
[1688325771046,0.18368552,1912.2,1912.1,6.91153956]
[1688325772045,0.17558673,1912.2,1912.1,6.91153956]
[1688325775857,0.46230308,1912.2,1912.1,6.91153956]
[1688325776354,0.17558673,1912.2,1912.1,6.91153956]
[1688325780371,0.77608308,1912.2,1912.1,6.91153956]
[1688325783468,0.48936673,1912.2,1912.1,6.91153956]
[1688325785267,0.17558673,1912.2,1912.1,6.91153956]
[1688325785470,0.77608308,1912.2,1912.1,6.91153956]
[1688325785866,0.77608308,1912.2,1912.1,6.83944724]
[1688325787063,0.77608308,1912.2,1912.1,6.91153956]
[1688325787770,0.48936673,1912.2,1912.1,6.91153956]
[1688325788478,0.17558673,1912.2,1912.1,6.91153956]
[1688325790676,10.45437,1912.4,1912.1,6.91153956]
[1688325790879,10.45437,1912.4,1912.3,3.298]
[1688325791174,11.73020814,1912.4,1912.3,3.61176]
[1688325792066,11.73020814,1912.4,1912.3,3.62660715]
[1688325793266,11.73020814,1912.4,1912.3,6.83440715]
[1688325793267,11.41643814,1912.4,1912.3,6.83440715]
[1688325793474,0.98912179,1912.4,1912.3,7.47398359]
[1688325793677,1.20076571,1912.5,1912.3,7.47398359]
[1688325793880,0.17491501,1912.4,1912.3,4.17598359]
[1688325794082,0.17491501,1912.4,1912.3,7.47898359]
[1688325794481,1.1640368,1912.4,1912.3,7.47898359]
[1688325795886,1.4777768,1912.4,1912.3,7.47898359]
[1688325796988,1.76449315,1912.4,1912.3,4.27118359]
[1688325799984,1.76449315,1912.4,1912.3,4.19909127]
[1688325800176,1.76449315,1912.4,1912.3,3.63160715]
[1688325802385,1.76449315,1912.4,1912.3,4.04244294]
[1688325812491,1.4777768,1912.4,1912.3,4.11453526]
[1688325813085,1.4777768,1912.4,1912.3,7.32233526]
[1688325817196,1.76449315,1912.4,1912.3,7.32233526]
[1688325819298,1.4777768,1912.4,1912.3,7.32233526]
[1688325820299,1.76449315,1912.4,1912.3,7.32233526]
[1688325820796,1.76449315,1912.4,1912.3,4.04244294]
[1688325829703,1.76449315,1912.4,1912.3,4.11453526]
[1688325829900,0.77537136,1912.4,1912.3,4.11453526]
[1688325830897,1.77118103,1912.4,1912.3,4.11453526]
[1688325838108,1.77118103,1912.4,1912.3,4.04244294]
[1688325839406,1.77118103,1912.4,1912.3,4.11453526]
[1688325840505,1.48446468,1912.4,1912.3,4.11453526]
[1688325843212,1.77118103,1912.4,1912.3,4.11453526]
[1688325849515,1.48446468,1912.4,1912.3,4.11453526]
[1688325850016,1.77118103,1912.4,1912.3,4.11453526]
[1688325855922,1.48446468,1912.4,1912.3,4.11453526]
[1688325856221,0.17491501,1912.4,1912.3,7.32233526]
[1688325856813,0.31372,1912.6,1912.3,7.32233526]
[1688325857019,0.31372,1912.6,1912.5,6.82453]
[1688325857217,0.31372,1912.6,1912.5,6.89662232]
[1688325858013,0.31372,1912.6,1912.5,6.91015283]
[1688325868931,0.49085814,1912.6,1912.5,6.91015283]
[1688325871228,0.49085814,1912.6,1912.5,7.33508536]
[1688325874135,0.77757449,1912.6,1912.5,7.26299304]
[1688325875134,0.77757449,1912.6,1912.5,7.33508536]
[1688325876140,0.49085814,1912.6,1912.5,7.33508536]
[1688325880347,0.77757449,1912.6,1912.5,7.33508536]
[1688325881043,0.49085814,1912.6,1912.5,7.33508536]
[1688325893549,0.17713814,1912.6,1912.5,7.33508536]
[1688325893752,11.11217199,1912.7,1912.5,7.33508536]
[1688325894154,0.17668576,1912.6,1912.5,7.33508536]
[1688325894456,11.11217199,1912.7,1912.5,7.33508536]
[1688325894659,0.49038696,1912.6,1912.5,7.33508536]
[1688325901354,1.50175699,1912.6,1912.5,7.33508536]
[1688325901655,1.18804699,1912.6,1912.5,7.33508536]
[1688325902258,1.50175699,1912.6,1912.5,7.33508536]
[1688325903158,1.18804699,1912.6,1912.5,7.33508536]
[1688325904670,0.17667696,1912.6,1912.5,7.33508536]
[1688325905166,11.11217199,1912.7,1912.5,7.33508536]
[1688325905356,0.17166658,1912.6,1912.5,7.33508536]
[1688325905554,11.11217199,1912.7,1912.5,7.33508536]
[1688325905758,0.17165811,1912.6,1912.5,7.33508536]
[1688325906167,11.11217199,1912.7,1912.5,7.33508536]
[1688325906364,0.17164912,1912.6,1912.5,7.33508536]
[1688325906564,11.11217199,1912.7,1912.5,7.33508536]
[1688325906766,0.17164012,1912.6,1912.5,7.33508536]
[1688325907268,0.1716312,1912.6,1912.5,7.33508536]
[1688325907570,11.11217199,1912.7,1912.5,7.33508536]
[1688325907770,0.17162219,1912.6,1912.5,7.33508536]
[1688325908068,11.11217199,1912.7,1912.5,7.33508536]
[1688325908372,0.17161324,1912.6,1912.5,7.33508536]
[1688325908664,0.48532324,1912.6,1912.5,7.33508536]
[1688325908874,0.31371,1912.6,1912.5,7.33508536]
[1688325909167,0.48531045,1912.6,1912.5,7.33508536]
[1688325910568,0.17160045,1912.6,1912.5,7.33508536]
[1688325910767,11.11217199,1912.7,1912.5,7.33508536]
[1688325910966,11.39888834,1912.7,1912.5,7.33508536]
[1688325911274,0.17156419,1912.6,1912.5,7.33508536]
[1688325911570,11.39888834,1912.7,1912.5,7.33508536]
[1688325911770,0.17155036,1912.6,1912.5,7.33508536]
[1688325912071,11.39888834,1912.7,1912.5,7.33508536]
[1688325912273,0.17154144,1912.6,1912.5,7.33508536]
[1688325912469,0.48525144,1912.6,1912.5,7.33508536]
[1688325912772,0.4852425,1912.6,1912.5,7.33508536]
[1688325915365,1.49572838,1912.6,1912.5,7.33508536]
[1688325920679,1.49572838,1912.6,1912.5,4.12728536]
[1688325921685,1.49572838,1912.6,1912.5,4.05519304]
[1688325924780,1.49572838,1912.6,1912.5,4.12728536]
[1688325926684,0.1715325,1912.6,1912.5,4.12728536]
[1688325927084,11.39888834,1912.7,1912.5,4.12728536]
[1688325927285,0.17127221,1912.6,1912.5,4.12728536]
[1688325927681,11.39888834,1912.7,1912.5,4.12728536]
[1688325927875,0.17126329,1912.6,1912.5,4.12728536]
[1688325928075,11.39888834,1912.7,1912.5,4.12728536]
[1688325928479,0.17125384,1912.6,1912.5,4.12728536]
[1688325929068,11.39888834,1912.7,1912.5,4.12728536]
[1688325929187,0.17124081,1912.6,1912.5,4.12728536]
[1688325929591,11.39888834,1912.7,1912.5,4.12728536]
[1688325929787,0.17122735,1912.6,1912.5,4.12728536]
[1688325930179,11.39888834,1912.7,1912.5,4.12728536]
[1688325930278,0.17121834,1912.6,1912.5,4.12728536]
[1688325930687,11.39888834,1912.7,1912.5,7.33508536]
[1688325930888,0.17120882,1912.6,1912.5,7.33508536]
[1688325931390,11.39888834,1912.7,1912.5,7.33508536]
[1688325931586,0.17119593,1912.6,1912.5,7.33508536]
[1688325931786,11.39888834,1912.7,1912.5,7.33508536]
[1688325932190,0.17118666,1912.6,1912.5,7.33508536]
[1688325932581,11.11217199,1912.7,1912.5,7.33508536]
[1688325932787,0.17117359,1912.6,1912.5,7.33508536]
[1688325933090,11.11217199,1912.7,1912.5,7.33508536]
[1688325933280,0.17116435,1912.6,1912.5,7.33508536]
[1688325933681,11.11217199,1912.7,1912.5,7.33508536]
[1688325933884,0.17115552,1912.6,1912.5,7.33508536]
[1688325934288,11.11217199,1912.7,1912.5,7.33508536]
[1688325934581,0.17114203,1912.6,1912.5,7.33508536]
[1688325934787,11.11217199,1912.7,1912.5,7.33508536]
[1688325935092,0.17113307,1912.6,1912.5,7.33508536]
[1688325935279,11.11217199,1912.7,1912.5,7.33508536]
[1688325935584,0.17112392,1912.6,1912.5,7.33508536]
[1688325935988,11.11217199,1912.7,1912.5,7.33508536]
[1688325936188,0.17111513,1912.6,1912.5,7.33508536]
[1688325936628,11.11217199,1912.7,1912.5,7.33508536]
[1688325936782,0.17110157,1912.6,1912.5,7.33508536]
[1688325937087,11.11217199,1912.7,1912.5,7.33508536]
[1688325937390,0.17109265,1912.6,1912.5,7.33508536]
[1688325937968,11.11217199,1912.7,1912.5,7.33508536]
[1688325938085,0.17107918,1912.6,1912.5,7.33508536]
[1688325938290,11.11217199,1912.7,1912.5,7.33508536]
[1688325938685,0.1710702,1912.6,1912.5,7.33508536]
[1688325938882,0.42029199,1912.7,1912.5,7.33508536]
[1688325939094,0.73399199,1912.7,1912.6,0.56748412]
[1688325939389,0.3137,1912.7,1912.6,0.88119412]
[1688325940133,0.3137,1912.7,1912.6,0.89601148]
[1688325942694,0.3137,1912.7,1912.6,4.19901148]
[1688325943895,0.52937601,1912.7,1912.6,4.19901148]
[1688325953604,0.81609236,1912.7,1912.6,4.19901148]
[1688325955699,0.81609236,1912.7,1912.6,3.63152736]
[1688325962709,0.81609236,1912.7,1912.6,3.60952736]
[1688325968005,0.52937601,1912.7,1912.6,3.60952736]
[1688325971009,0.81609236,1912.7,1912.6,3.60952736]
[1688325982935,0.81609236,1912.7,1912.6,0.32852736]
[1688325983233,1.83293191,1912.7,1912.6,0.32852736]
[1688325992529,1.54621556,1912.7,1912.6,0.40061968]
[1688325992734,1.54621556,1912.7,1912.6,3.70361968]
[1688325992938,0.52937601,1912.7,1912.6,3.70361968]
[1688325999546,0.81609236,1912.7,1912.6,3.70361968]
[1688326001341,0.81609236,1912.7,1912.6,3.63152736]
[1688326002840,4.09409236,1912.7,1912.6,0.32852736]
[1688326003038,5.11093191,1912.7,1912.6,0.32852736]
[1688326008052,4.09409236,1912.7,1912.6,0.32852736]
[1688326017058,4.09409236,1912.7,1912.6,0.40061968]
[1688326017960,5.11093191,1912.7,1912.6,0.32852736]
[1688326023665,4.09409236,1912.7,1912.6,0.32852736]
[1688326025263,3.80737601,1912.7,1912.6,0.40061968]
[1688326027368,3.49367601,1912.7,1912.6,0.40061968]
[1688326027666,3.80736601,1912.7,1912.6,0.40061968]
[1688326028194,0.21567601,1912.7,1912.6,3.70361968]
[1688326028278,1.43110055,1912.8,1912.6,3.70361968]
[1688326028566,0.15,1913.0,1912.8,5.0]
[1688326028860,0.15,1913.0,1912.9,13.41244294]
[1688326029256,6.17513041,1913.4,1913.0,5.0]
[1688326029458,3.2078,1913.7,1913.3,3.61659]
[1688326029703,0.56748412,1913.7,1913.5,3.298]
[1688326029861,0.78392,1913.6,1913.5,0.38564232]
[1688326031301,0.78392,1913.6,1913.5,3.66664232]
[1688326032167,0.78392,1913.6,1913.5,3.68050114]
[1688326035975,1.5060054,1913.6,1913.5,3.68050114]
[1688326041772,1.5060054,1913.6,1913.5,4.10836333]
[1688326045365,1.5060054,1913.6,1913.5,3.29485882]
[1688326045366,5.00052175,1913.6,1913.5,3.29485882]
[1688326045477,1.79272175,1913.6,1913.5,3.60841882]
[1688326045966,1.79272175,1913.6,1913.5,3.68051114]
[1688326046169,1.0356354,1913.6,1913.5,3.68051114]
[1688326046574,1.32235175,1913.6,1913.5,3.68051114]
[1688326046779,1.32235175,1913.6,1913.5,3.60841882]
[1688326048181,1.0356354,1913.6,1913.5,3.68051114]
[1688326048473,1.32235175,1913.6,1913.5,3.60841882]
[1688326049281,4.53015175,1913.6,1913.5,3.60841882]
[1688326050277,1.0356354,1913.6,1913.5,3.68051114]
[1688326053879,1.32235175,1913.6,1913.5,3.60841882]
[1688326054279,4.53015175,1913.6,1913.5,3.29485882]
[1688326054474,7.91315175,1913.6,1913.5,0.01385882]
[1688326054684,0.67248412,1913.5,1913.1,0.78396]
[1688326054879,6.5108,1913.3,1913.1,0.31363]
[1688326055192,1.16781047,1913.2,1913.1,0.31363]
[1688326055487,1.78751743,1913.2,1913.1,0.31363]
[1688326060786,0.93331696,1913.2,1913.1,0.38572232]
[1688326060983,1.22003331,1913.2,1913.1,0.31363]
[1688326062699,1.22003331,1913.2,1913.1,3.61163]
[1688326063186,1.22003331,1913.2,1913.1,3.62445616]
[1688326063778,1.22003331,1913.2,1913.1,3.31082616]
[1688326063978,4.49803331,1913.2,1913.1,0.01282616]
[1688326064180,4.49803331,1913.2,1913.0,0.79194027]
[1688326064391,3.77528412,1913.1,1913.0,0.79194027]
[1688326064692,4.70847521,1913.1,1913.0,0.79194027]
[1688326065184,4.70847521,1913.1,1913.0,0.80477682]
[1688326072292,4.70847521,1913.1,1913.0,0.02067682]
[1688326072531,7.98647521,1913.1,1913.0,0.02067682]
[1688326072796,7.76230362,1913.1,1912.7,11.20181]